[Event "84th ESP-ch 2019"]
[Site "Marbella"]
[Date "2019.11.22"]
[Round "7.42"]
[White "Sanchez Elena, Lucia"]
[Black "Luque Saiz, Andres"]
[Result "0-1"]
[ECO "B19"]
[WhiteElo "1662"]
[BlackElo "2140"]
[Annotator "ChessBase"]
[PlyCount "94"]
[EventDate "2019.11.16"]
[EventType "swiss"]
[EventCountry "ESP"]
[SourceTitle "playchess.com"]
[Source "ChessBase"]
[SourceQuality "1"]
[TimeControl "5400+30"]

1. e4 {[%emt 0:00:00]} c6 {[%emt 0:00:00]} 2. d4 {[%emt 0:00:00]} d5 {[%emt 0:00:00]} 3. Nc3 {[%emt 0:00:00]} dxe4 {[%emt 0:00:15]} 4. Nxe4 {[%emt 0:00:00]} Bf5 {[%emt 0:00:20]} 5. Ng3 {[%emt 0:00:09]} Bg6 {[%emt 0:00:24]} 6. Nf3 {[%emt 0:00:16]} Nd7 {[%emt 0:00:34]} 7. h4 {[%emt 0:00:17]} h6 {[%emt 0:00:13]} 8. h5 {[%emt 0:00:08]} Bh7 {[%emt 0:00:26]} 9. Bd3 {[%emt 0:00:14]} Bxd3 {[%emt 0:00:27]} 10. Qxd3 {[%emt 0:00:05]} e6 {[%emt 0:01:41]} 11. Bf4 {[%emt 0:02:05]} Qa5+ {[%emt 0:00:18]} 12. Bd2 {[%emt 0:00:17]} Qc7 {[%emt 0:00:08]} 13. Qe2 {[%emt 0:03:17]} Ngf6 {[%emt 0:07:23]} 14. O-O-O {[%emt 0:04:06]} Be7 {[%emt 0:08:10]} 15. Rde1 {[%emt 0:07:22]} O-O-O {[%emt 0:04:48]} 16. Nf5 {[%emt 0:04:41]} Bf8 {[%emt 0:00:24]} 17. Ne3 {[%emt 0:00:32]} Ne4 {[%emt 0:08:03]} 18. Nc4 {[%emt 0:08:20]} Nxd2 {[%emt 0:00:34]} 19. Qxd2 {[%emt 0:00:31]} Nf6 {[%emt 0:02:16]} 20. Qe3 {[%emt 0:07:31]} Rd5 {[%emt 0:10:35]} 21. Nfe5 {[%emt 0:00:30]} c5 {[%emt 0:00:30]} 22. dxc5 {[%emt 0:00:30]} Bxc5 {[%emt 0:00:30]} 23. Qg3 {[%emt 0:16:10]} Rg8 {[%emt 0:09:48]} 24. Rh4 {[%emt 0:08:42]} b5 {[%emt 0:02:11]} 25. Nd2 {[%emt 0:01:41]} Bxf2 {[%emt 0:00:43]} 26. Qxf2 {[%emt 0:00:27]} Rxe5 {[%emt 0:00:04]} 27. Rxe5 {[%emt 0:00:30]} Qxe5 {[%emt 0:00:30]} 28. Nf3 {[%emt 0:01:59]} Qc7 {[%emt 0:02:51]} 29. Nd4 {[%emt 0:01:43]} Qe5 {[%emt 0:03:40]} 30. Rh3 {[%emt 0:03:43]} Qg5+ {[%emt 0:07:06]} 31. Kb1 {[%emt 0:02:03]} Rd8 {[%emt 0:01:10]} 32. a3 {[%emt 0:06:52]} Ne4 {[%emt 0:03:27]} 33. Qg1 {[%emt 0:01:57]} Qc5 {[%emt 0:00:29]} 34. Rd3 {[%emt 0:02:28]} e5 {[%emt 0:00:44]} 35. Nf3 {[%emt 0:00:30]} Qxg1+ {[%emt 0:00:30]} 36. Nxg1 {[%emt 0:00:19]} Rxd3 {[%emt 0:00:37]} 37. cxd3 {[%emt 0:00:07]} Ng3 {[%emt 0:00:17]} 38. Nf3 {[%emt 0:00:32]} f6 {[%emt 0:00:07]} 39. Nh4 {[%emt 0:00:18]} Kd7 {[%emt 0:01:47]} 40. Kc2 {[%emt 0:00:28]} Nxh5 {[%emt 0:00:10]} 41. Nf5 {[%emt 0:00:30]} Ke6 {[%emt 0:02:45]} 42. g4 {[%emt 0:00:19]} g6 {[%emt 0:00:07]} 43. Nxh6 {[%emt 0:02:36]} Nf4 {[%emt 0:00:30]} 44. Kd2 {[%emt 0:00:46]} f5 {[%emt 0:01:53]} 45. gxf5+ gxf5 {[%emt 0:00:03]} 46. Ke3 {[%emt 0:01:08]} Nd5+ {[%emt 0:00:15]} 47. Kf3 {[%emt 0:00:12]} Kf6 {[%emt 0:00:08]} 0-1

[Event "84th ESP-ch 2019"]
[Site "Marbella"]
[Date "2019.11.23"]
[Round "8.2"]
[White "Salgado Lopez, Ivan"]
[Black "Shirov, Alexei"]
[Result "1-0"]
[ECO "D44"]
[WhiteElo "2594"]
[BlackElo "2666"]
[Annotator "ChessBase"]
[PlyCount "77"]
[EventDate "2019.11.16"]
[EventType "swiss"]
[EventCountry "ESP"]
[SourceTitle "playchess.com"]
[Source "ChessBase"]
[SourceQuality "1"]
[TimeControl "5400+30"]

1. d4 {[%emt 0:00:00]} d5 {[%emt 0:01:13]} 2. c4 {[%emt 0:00:00]} c6 {[%emt 0:00:03]} 3. Nf3 {[%emt 0:00:07]} Nf6 {[%emt 0:00:04]} 4. Nc3 {[%emt 0:00:16]} e6 {[%emt 0:00:20]} 5. Bg5 {[%emt 0:00:10]} h6 {[%emt 0:00:17]} 6. Bh4 {[%emt 0:00:18]} dxc4 {[%emt 0:01:33]} 7. e4 {[%emt 0:00:08]} b5 {[%emt 0:00:15]} 8. e5 {[%emt 0:00:16]} g5 {[%emt 0:00:03]} 9. Nxg5 {[%emt 0:00:15]} hxg5 {[%emt 0:00:04]} 10. Bxg5 {[%emt 0:00:13]} Nbd7 {[%emt 0:00:02]} 11. g3 {[%emt 0:00:17]} Bb7 {[%emt 0:00:03]} 12. Bg2 {[%emt 0:00:18]} Qb6 {[%emt 0:00:02]} 13. exf6 {[%emt 0:00:26]} O-O-O {[%emt 0:00:06]} 14. O-O {[%emt 0:00:35]} c5 {[%emt 0:00:02]} 15. d5 {[%emt 0:00:17]} b4 {[%emt 0:00:05]} 16. Na4 {[%emt 0:00:34]} Qb5 {[%emt 0:00:26]} 17. a3 {[%emt 0:02:50]} Nb8 {[%emt 0:00:05]} 18. axb4 {[%emt 0:01:55]} cxb4 {[%emt 0:00:03]} 19. Qg4 {[%emt 0:01:28]} Bxd5 {[%emt 0:00:09]} 20. Rfc1 {[%emt 0:03:09]} Nc6 {[%emt 0:00:39]} 21. Bxd5 {[%emt 0:02:32]} Rxd5 {[%emt 0:00:04]} 22. Rxc4 {[%emt 0:00:43]} Rxg5 {[%emt 0:00:03]} 23. Qd4 {[%emt 0:02:23]} Kb8 {[%emt 0:00:05]} 24. Rxc6 {[%emt 0:01:41]} Rxg3+ {[%emt 0:00:08]} 25. fxg3 {[%emt 0:00:16]} Qxc6 {[%emt 0:00:03]} 26. Rd1 {[%emt 0:01:14]} Qc7 {[%emt 0:00:09]} 27. b3 {[%emt 0:01:40]} Kc8 {[%emt 0:00:04]} 28. Qe3 {[%emt 0:00:47]} Kb8 {[%emt 0:07:52]} 29. Qd2 {[%emt 0:00:32]} Bc5+ {[%emt 0:06:54]} 30. Nxc5 {[%emt 0:00:40]} Qxc5+ {[%emt 0:00:11]} 31. Qd4 {[%emt 0:00:08]} Qc3 {[%emt 0:37:39]} 32. g4 {[%emt 0:00:25]} Rg8 {[%emt 0:25:03]} 33. Kf2 {[%emt 0:01:03]} Qxb3 {[%emt 0:05:22]} 34. Qe5+ {[%emt 0:01:10]} Ka8 {[%emt 0:00:06]} 35. Qe4+ {[%emt 0:00:21]} Kb8 {[%emt 0:00:03]} 36. Rb1 {[%emt 0:00:32]} Qa2+ {[%emt 0:00:07]} 37. Ke1 {[%emt 0:00:12]} a5 {[%emt 0:03:34]} 38. Qe5+ {[%emt 0:01:59]} Kb7 {[%emt 0:00:08]} 39. Qb5+ {[%emt 0:01:39]} 1-0

[Event "84th ESP-ch 2019"]
[Site "Marbella"]
[Date "2019.11.23"]
[Round "8.3"]
[White "Asis Gargatagli, Hipolito"]
[Black "Santos Latasa, Jaime"]
[Result "1/2-1/2"]
[ECO "C44"]
[WhiteElo "2497"]
[BlackElo "2581"]
[Annotator "ChessBase"]
[PlyCount "109"]
[EventDate "2019.11.16"]
[EventType "swiss"]
[EventCountry "ESP"]
[SourceTitle "playchess.com"]
[Source "ChessBase"]
[SourceQuality "1"]
[TimeControl "5400+30"]

1. e4 {[%emt 0:00:00]} e5 {[%emt 0:00:00]} 2. Nf3 {[%emt 0:00:00]} Nc6 {[%emt 0:00:00]} 3. d4 {[%emt 0:00:00]} exd4 {[%emt 0:00:00]} 4. Nxd4 {[%emt 0:00:00]} Nf6 {[%emt 0:00:18]} 5. Nxc6 {[%emt 0:00:00]} bxc6 {[%emt 0:00:04]} 6. Bd3 {[%emt 0:00:04]} d5 {[%emt 0:00:43]} 7. exd5 {[%emt 0:00:05]} cxd5 {[%emt 0:00:04]} 8. O-O {[%emt 0:00:07]} Be7 {[%emt 0:00:04]} 9. c4 {[%emt 0:00:06]} O-O {[%emt 0:01:27]} 10. cxd5 {[%emt 0:00:27]} Bb7 {[%emt 0:00:34]} 11. Nc3 {[%emt 0:00:15]} Nxd5 {[%emt 0:00:20]} 12. Bd2 {[%emt 0:00:21]} Re8 {[%emt 0:03:38]} 13. Re1 {[%emt 0:10:23]} Rb8 {[%emt 0:05:05]} 14. Nxd5 {[%emt 0:28:42]} Qxd5 {[%emt 0:05:25]} 15. Be4 {[%emt 0:00:40]} Qb5 {[%emt 0:00:54]} 16. Bxb7 {[%emt 0:02:48]} Qxb7 {[%emt 0:01:30]} 17. Bc3 {[%emt 0:00:17]} c5 {[%emt 0:10:31]} 18. Qa4 {[%emt 0:02:30]} Red8 {[%emt 0:00:43]} 19. Rad1 {[%emt 0:01:03]} Bf8 {[%emt 0:00:49]} 20. h3 {[%emt 0:03:03]} h6 {[%emt 0:00:32]} 21. Rxd8 {[%emt 0:07:00]} Rxd8 {[%emt 0:00:11]} 22. Re8 {[%emt 0:00:20]} Qd7 {[%emt 0:03:20]} 23. Qxd7 {[%emt 0:00:34]} Rxd7 {[%emt 0:00:06]} 24. Kf1 {[%emt 0:05:58]} f6 {[%emt 0:00:12]} 25. g4 {[%emt 0:03:26]} Kf7 {[%emt 0:00:19]} 26. Re4 {[%emt 0:00:05]} Be7 {[%emt 0:00:44]} 27. Ke2 {[%emt 0:00:12]} g6 {[%emt 0:01:19]} 28. Bd2 {[%emt 0:01:06]} h5 {[%emt 0:00:35]} 29. gxh5 {[%emt 0:00:16]} gxh5 {[%emt 0:00:07]} 30. Be3 {[%emt 0:00:27]} Bd6 {[%emt 0:03:31]} 31. b3 {[%emt 0:02:44]} f5 {[%emt 0:01:27]} 32. Rh4 {[%emt 0:01:49]} Kg6 {[%emt 0:00:05]} 33. Rc4 {[%emt 0:01:34]} Rc7 {[%emt 0:00:11]} 34. Ra4 {[%emt 0:01:45]} Kf7 {[%emt 0:00:47]} 35. Ra6 {[%emt 0:00:44]} f4 {[%emt 0:06:00]} 36. Rxd6 {[%emt 0:05:29]} fxe3 {[%emt 0:00:37]} 37. fxe3 {[%emt 0:09:06]} c4 {[%emt 0:00:28]} 38. bxc4 {[%emt 0:03:01]} Rxc4 {[%emt 0:00:08]} 39. Rd7+ {[%emt 0:04:14]} Ke6 {[%emt 0:00:07]} 40. Rxa7 {[%emt 0:00:03]} Rh4 {[%emt 0:00:05]} 41. a4 {[%emt 0:00:42]} Rxh3 {[%emt 0:00:10]} 42. a5 {[%emt 0:00:07]} Rh2+ {[%emt 0:00:09]} 43. Kf3 {[%emt 0:00:07]} Ra2 {[%emt 0:00:24]} 44. a6 {[%emt 0:00:09]} h4 {[%emt 0:01:40]} 45. Kg4 {[%emt 0:06:39]} Ra4+ {[%emt 0:00:47]} 46. Kh3 {[%emt 0:00:04]} Kd5 {[%emt 0:00:51]} 47. Ra8 {[%emt 0:02:35]} Kc6 {[%emt 0:00:25]} 48. Rh8 {[%emt 0:01:52]} Kb5 {[%emt 0:01:08]} 49. Rh5+ {[%emt 0:00:43]} Kxa6 {[%emt 0:00:18]} 50. Rxh4 {[%emt 0:00:04]} Ra3 {[%emt 0:00:06]} 51. Re4 {[%emt 0:00:02]} Kb6 {[%emt 0:00:10]} 52. Kg3 {[%emt 0:00:04]} Kc6 {[%emt 0:00:05]} 53. Kf4 {[%emt 0:00:16]} Kd7 {[%emt 0:00:07]} 54. Re5 {[%emt 0:00:32]} Kd6 {[%emt 0:00:30]} 55. Rb5 {[%emt 0:00:29]} 1/2-1/2

[Event "84th ESP-ch 2019"]
[Site "Marbella"]
[Date "2019.11.23"]
[Round "8.4"]
[White "Arizmendi Martinez, Julen Luis"]
[Black "Ibarra Jerez, Jose Carlos"]
[Result "0-1"]
[ECO "B40"]
[WhiteElo "2517"]
[BlackElo "2540"]
[Annotator "RC"]
[PlyCount "58"]
[EventDate "2019.11.16"]
[EventType "swiss"]
[EventCountry "ESP"]
[SourceTitle "playchess.com"]
[Source "ChessBase"]
[SourceQuality "1"]
[TimeControl "5400+30"]

1. e4 {[%emt 0:00:29]} c5 {[%emt 0:00:00]} 2. Nf3 {[%emt 0:00:16]} e6 {[%emt 0:00:31]} 3. d4 {[%emt 0:00:38]} cxd4 {[%emt 0:00:19]} 4. Nxd4 {[%emt 0:00:05]} Nf6 {[%emt 0:00:39]} 5. Nc3 {[%emt 0:00:27]} Nc6 {[%emt 0:00:18]} 6. Nxc6 {[%emt 0:03:11]} bxc6 {[%emt 0:01:38]} 7. e5 Nd5 {[%emt 0:00:12]} 8. Ne4 {[%emt 0:00:14]} Qc7 {[%emt 0:01:09]} 9. f4 {[%emt 0:00:25]} Qb6 {[%emt 0:00:47]} 10. c4 {[%emt 0:02:49]} Bb4+ {[%emt 0:01:26]} 11. Ke2 {[%emt 0:03:24]} f5 {[%emt 0:01:10]} 12. exf6 {[%emt 0:07:14]} Nxf6 {[%emt 0:01:20]} 13. Be3 {[%emt 0:00:37]} Qd8 {[%emt 0:00:34]} 14. Nd6+ {[%emt 0:00:54]} Bxd6 {[%emt 0:00:33]} 15. Qxd6 {[%emt 0:00:03]} Bb7 {[%emt 0:01:31]} 16. Rd1 {[%emt 0:24:43]} Rc8 {[%emt 0:02:05]} 17. Rg1 {[%emt 0:07:17]} c5 {[%emt 0:05:13]} 18. g4 {[%emt 0:01:34]} Rc6 {[%emt 0:00:42]} 19. Qe5 {[%emt 0:01:56]} O-O {[%emt 0:01:04]} 20. g5 {[%emt 0:04:29]} Nh5 {[%emt 0:02:59]} 21. Bh3 {[%emt 0:01:40]} d6 22. Qxe6+ {[%emt 0:03:21]} Kh8 {[%emt 0:03:02]} 23. Qd7 {[%emt 0:09:34]} Qb8 {[%emt 0:00:47]} 24. Qg4 {[%emt 0:21:13]} g6 {[%emt 0:01:01]} 25. Bd2 {[%emt 0:04:34]} d5 {[%emt 0:19:02]} 26. cxd5 Nxf4+ {[%emt 0:02:54]} 27. Bxf4 {[%emt 0:00:36]} Rxf4 {[%emt 0:00:01]} 28. Qxf4 {[%emt 0:01:43]} Qxf4 {[%emt 0:00:15]} 29. dxc6 {[%emt 0:00:03]} Ba6+ {[%emt 0:00:15]} 0-1

[Event "84th ESP-ch 2019"]
[Site "Marbella"]
[Date "2019.11.23"]
[Round "8.5"]
[White "Narciso Dublan, Marc"]
[Black "Del Rio De Angelis, Salvador G."]
[Result "1/2-1/2"]
[ECO "C02"]
[WhiteElo "2517"]
[BlackElo "2502"]
[Annotator "ChessBase"]
[PlyCount "65"]
[EventDate "2019.11.16"]
[EventType "swiss"]
[EventCountry "ESP"]
[SourceTitle "playchess.com"]
[Source "ChessBase"]
[SourceQuality "1"]
[TimeControl "5400+30"]

1. d4 {[%emt 0:00:00]} e6 {[%emt 0:00:00]} 2. e4 {[%emt 0:00:00]} d5 {[%emt 0:00:00]} 3. e5 {[%emt 0:00:01]} c5 {[%emt 0:00:14]} 4. c3 {[%emt 0:00:22]} Nc6 {[%emt 0:01:44]} 5. Nf3 {[%emt 0:00:15]} Bd7 {[%emt 0:00:13]} 6. Be2 {[%emt 0:00:20]} Nge7 {[%emt 0:01:13]} 7. O-O {[%emt 0:00:23]} Ng6 {[%emt 0:01:23]} 8. Be3 {[%emt 0:00:25]} Be7 {[%emt 0:02:07]} 9. Nbd2 {[%emt 0:00:28]} O-O {[%emt 0:03:20]} 10. Re1 {[%emt 0:00:20]} Rc8 {[%emt 0:02:23]} 11. a3 {[%emt 0:03:26]} Qb6 {[%emt 0:04:21]} 12. b4 {[%emt 0:07:30]} cxd4 {[%emt 0:00:08]} 13. cxd4 {[%emt 0:00:14]} Nb8 {[%emt 0:01:07]} 14. Bd3 {[%emt 0:14:10]} Rc3 {[%emt 0:05:30]} 15. Nb1 {[%emt 0:01:28]} Rc7 {[%emt 0:02:42]} 16. h4 {[%emt 0:01:03]} Rfc8 {[%emt 0:14:50]} 17. h5 {[%emt 0:01:39]} Nf8 {[%emt 0:00:05]} 18. Nbd2 {[%emt 0:19:33]} Rc3 {[%emt 0:04:48]} 19. Nf1 {[%emt 0:00:55]} Bb5 {[%emt 0:09:59]} 20. Bxb5 {[%emt 0:00:46]} Qxb5 {[%emt 0:01:36]} 21. h6 {[%emt 0:05:58]} g6 {[%emt 0:01:38]} 22. N1h2 {[%emt 0:00:30]} Qd3 {[%emt 0:02:15]} 23. Qxd3 {[%emt 0:05:44]} Rxd3 {[%emt 0:00:08]} 24. Ng4 {[%emt 0:00:11]} Nfd7 {[%emt 0:00:28]} 25. Kf1 {[%emt 0:19:34]} Rdc3 {[%emt 0:01:51]} 26. Bd2 {[%emt 0:00:42]} Rc2 {[%emt 0:00:50]} 27. b5 {[%emt 0:04:20]} Nb6 {[%emt 0:05:02]} 28. Bb4 {[%emt 0:02:06]} Bd8 {[%emt 0:01:06]} 29. Ne3 R2c7 {[%emt 0:00:15]} 30. Bd6 {[%emt 0:01:27]} Rc3 {[%emt 0:00:25]} 31. Bb4 {[%emt 0:06:23]} R3c7 {[%emt 0:00:06]} 32. Bd6 {[%emt 0:00:26]} Rc3 {[%emt 0:00:06]} 33. Bb4 {[%emt 0:02:33]} 1/2-1/2

[Event "84th ESP-ch 2019"]
[Site "Marbella"]
[Date "2019.11.23"]
[Round "8.7"]
[White "Perez Candelario, Manuel"]
[Black "Tejedor Fuente, Enrique"]
[Result "1-0"]
[ECO "C11"]
[WhiteElo "2623"]
[BlackElo "2457"]
[Annotator "ChessBase"]
[PlyCount "97"]
[EventDate "2019.11.16"]
[EventType "swiss"]
[EventCountry "ESP"]
[SourceTitle "playchess.com"]
[Source "ChessBase"]
[SourceQuality "1"]
[TimeControl "5400+30"]

1. e4 {[%emt 0:00:00]} e6 {[%emt 0:02:25]} 2. d4 {[%emt 0:00:00]} d5 {[%emt 0:00:25]} 3. Nc3 {[%emt 0:00:00]} Nf6 {[%emt 0:00:23]} 4. Bg5 {[%emt 0:00:00]} dxe4 {[%emt 0:00:05]} 5. Nxe4 {[%emt 0:00:00]} Be7 {[%emt 0:00:01]} 6. Bxf6 {[%emt 0:00:10]} gxf6 {[%emt 0:00:02]} 7. Qd2 {[%emt 0:00:17]} Nd7 {[%emt 0:05:52]} 8. O-O-O {[%emt 0:01:58]} Nb6 {[%emt 0:08:03]} 9. Nc3 {[%emt 0:19:55]} Bd7 {[%emt 0:02:29]} 10. d5 {[%emt 0:01:05]} exd5 {[%emt 0:01:57]} 11. Nxd5 {[%emt 0:00:26]} Be6 {[%emt 0:00:56]} 12. Nxe7 {[%emt 0:02:32]} Qxd2+ {[%emt 0:00:13]} 13. Rxd2 {[%emt 0:00:05]} Kxe7 {[%emt 0:00:01]} 14. Nf3 {[%emt 0:01:27]} c5 {[%emt 0:28:35]} 15. Be2 {[%emt 0:11:39]} Rhd8 {[%emt 0:01:55]} 16. Re1 {[%emt 0:00:23]} h6 17. Bd3 {[%emt 0:02:50]} Kf8 {[%emt 0:10:36]} 18. Be4 {[%emt 0:00:35]} Nc4 {[%emt 0:00:45]} 19. Bxb7 {[%emt 0:05:02]} Rxd2 {[%emt 0:01:31]} 20. Nxd2 Rb8 21. Nxc4 {[%emt 0:00:53]} Bxc4 {[%emt 0:00:07]} 22. Bc6 {[%emt 0:06:53]} Bxa2 {[%emt 0:00:38]} 23. b3 {[%emt 0:02:36]} c4 {[%emt 0:00:01]} 24. Kb2 {[%emt 0:02:18]} cxb3 {[%emt 0:00:00]} 25. Ba4 {[%emt 0:01:31]} a5 {[%emt 0:01:14]} 26. Ka3 {[%emt 0:01:21]} Rd8 {[%emt 0:04:11]} 27. cxb3 {[%emt 0:00:14]} Rd2 {[%emt 0:00:02]} 28. Ra1 {[%emt 0:00:47]} Bxb3 {[%emt 0:00:01]} 29. Kxb3 {[%emt 0:00:17]} Rxf2 {[%emt 0:00:02]} 30. Bc6 {[%emt 0:00:15]} Rf5 {[%emt 0:00:11]} 31. Kc4 {[%emt 0:00:57]} Rh5 {[%emt 0:00:22]} 32. h3 {[%emt 0:00:12]} Kg7 {[%emt 0:02:46]} 33. Bd5 {[%emt 0:02:50]} Rh4+ {[%emt 0:00:58]} 34. Kb5 {[%emt 0:00:09]} Rb4+ {[%emt 0:00:10]} 35. Kc5 {[%emt 0:00:09]} Rb8 {[%emt 0:00:24]} 36. Rxa5 {[%emt 0:00:08]} Rc8+ {[%emt 0:00:15]} 37. Kd6 {[%emt 0:00:45]} Rd8+ {[%emt 0:00:50]} 38. Kc6 {[%emt 0:00:06]} Kg6 {[%emt 0:00:14]} 39. Ra7 {[%emt 0:00:21]} Rf8 {[%emt 0:00:03]} 40. Kd7 {[%emt 0:00:14]} f5 {[%emt 0:00:10]} 41. Ke7 {[%emt 0:00:43]} Rb8 {[%emt 0:00:00]} 42. Bxf7+ {[%emt 0:00:28]} Kg5 {[%emt 0:00:02]} 43. Bd5 {[%emt 0:00:20]} Rb6 44. Kf7 {[%emt 0:01:13]} h5 {[%emt 0:00:42]} 45. Ra8 Kh4 {[%emt 0:01:07]} 46. Bf3 {[%emt 0:02:36]} Rb3 {[%emt 0:01:13]} 47. Rh8 Rxf3 {[%emt 0:00:29]} 48. gxf3 {[%emt 0:02:29]} f4 {[%emt 0:00:06]} 49. Rg8 {[%emt 0:00:06]} 1-0

[Event "84th ESP-ch 2019"]
[Site "Marbella"]
[Date "2019.11.23"]
[Round "8.9"]
[White "Pazos Porta, Antonio"]
[Black "Larino Nieto, David"]
[Result "0-1"]
[ECO "C65"]
[WhiteElo "2345"]
[BlackElo "2473"]
[Annotator "ChessBase"]
[PlyCount "82"]
[EventDate "2019.11.16"]
[EventType "swiss"]
[EventCountry "ESP"]
[SourceTitle "playchess.com"]
[Source "ChessBase"]
[SourceQuality "1"]
[TimeControl "5400+30"]

1. e4 {[%emt 0:00:00]} e5 {[%emt 0:07:42]} 2. Nf3 {[%emt 0:00:17]} Nc6 {[%emt 0:00:01]} 3. Bb5 {[%emt 0:01:24]} Nf6 {[%emt 0:00:04]} 4. d3 {[%emt 0:00:34]} d6 {[%emt 0:00:02]} 5. c3 {[%emt 0:06:08]} g6 {[%emt 0:00:32]} 6. Nbd2 {[%emt 0:03:49]} Bg7 {[%emt 0:00:20]} 7. O-O {[%emt 0:08:04]} O-O {[%emt 0:13:35]} 8. Re1 {[%emt 0:01:08]} a6 {[%emt 0:03:56]} 9. Ba4 {[%emt 0:01:59]} b5 {[%emt 0:00:21]} 10. Bb3 {[%emt 0:03:43]} Na5 {[%emt 0:00:58]} 11. Bc2 {[%emt 0:00:06]} c5 {[%emt 0:00:22]} 12. Nf1 {[%emt 0:02:31]} h6 {[%emt 0:00:02]} 13. Ne3 {[%emt 0:02:47]} Bb7 {[%emt 0:02:42]} 14. h3 {[%emt 0:04:47]} Kh7 {[%emt 0:00:45]} 15. Ng4 {[%emt 0:04:29]} Nxg4 {[%emt 0:02:41]} 16. hxg4 {[%emt 0:00:12]} d5 {[%emt 0:00:15]} 17. Qe2 {[%emt 0:11:30]} d4 {[%emt 0:12:15]} 18. cxd4 {[%emt 0:07:05]} exd4 {[%emt 0:00:41]} 19. g5 {[%emt 0:04:59]} f6 {[%emt 0:05:15]} 20. gxh6 {[%emt 0:03:22]} Bxh6 {[%emt 0:01:35]} 21. Bxh6 {[%emt 0:01:36]} Kxh6 {[%emt 0:00:02]} 22. e5 {[%emt 0:06:44]} Ra7 {[%emt 0:18:41]} 23. exf6 {[%emt 0:14:26]} Bxf3 {[%emt 0:01:39]} 24. Qxf3 {[%emt 0:03:33]} Qxf6 {[%emt 0:00:06]} 25. Qh3+ {[%emt 0:01:05]} Kg7 {[%emt 0:00:02]} 26. Re2 {[%emt 0:00:12]} Re7 {[%emt 0:00:21]} 27. Qg4 {[%emt 0:03:23]} Rfe8 {[%emt 0:00:46]} 28. Rae1 {[%emt 0:00:19]} Nc6 {[%emt 0:04:36]} 29. Rxe7+ {[%emt 0:01:23]} Rxe7 {[%emt 0:00:01]} 30. Rxe7+ {[%emt 0:00:09]} Qxe7 {[%emt 0:00:02]} 31. Bb3 {[%emt 0:01:35]} Na5 {[%emt 0:01:00]} 32. Qc8 {[%emt 0:01:11]} c4 {[%emt 0:10:13]} 33. dxc4 {[%emt 0:00:14]} Nxb3 {[%emt 0:00:07]} 34. axb3 {[%emt 0:00:15]} d3 {[%emt 0:00:01]} 35. cxb5 {[%emt 0:01:45]} Qe1+ {[%emt 0:00:02]} 36. Kh2 {[%emt 0:00:08]} Qe5+ {[%emt 0:00:02]} 37. Kh3 {[%emt 0:01:03]} Qd4 {[%emt 0:01:51]} 38. Qc7+ {[%emt 0:00:31]} Kh6 {[%emt 0:03:35]} 39. Qc1+ {[%emt 0:00:31]} d2 {[%emt 0:00:05]} 40. Qd1 {[%emt 0:00:05]} Qxf2 {[%emt 0:01:02]} 41. Qg4 {[%emt 0:00:57]} Qf5 {[%emt 0:01:12]} 0-1

[Event "84th ESP-ch 2019"]
[Site "Marbella"]
[Date "2019.11.23"]
[Round "8.10"]
[White "Diaz Camallonga, Carles"]
[Black "Berrocal Ruiz, Valentin"]
[Result "1-0"]
[ECO "C70"]
[WhiteElo "2465"]
[BlackElo "2143"]
[Annotator "ChessBase"]
[PlyCount "93"]
[EventDate "2019.11.16"]
[EventType "swiss"]
[EventCountry "ESP"]
[SourceTitle "playchess.com"]
[Source "ChessBase"]
[SourceQuality "1"]
[TimeControl "5400+30"]

1. e4 {[%emt 0:00:00]} e5 {[%emt 0:00:43]} 2. Nf3 {[%emt 0:00:00]} Nc6 {[%emt 0:00:06]} 3. Bb5 {[%emt 0:00:00]} a6 {[%emt 0:00:08]} 4. Ba4 {[%emt 0:00:00]} g6 {[%emt 0:00:06]} 5. O-O {[%emt 0:01:51]} Bg7 {[%emt 0:00:07]} 6. c3 {[%emt 0:00:20]} Nge7 {[%emt 0:00:06]} 7. d4 {[%emt 0:00:08]} exd4 {[%emt 0:00:08]} 8. cxd4 {[%emt 0:00:13]} b5 {[%emt 0:00:15]} 9. Bc2 {[%emt 0:00:17]} O-O {[%emt 0:00:22]} 10. Nc3 {[%emt 0:03:19]} d6 {[%emt 0:03:05]} 11. h3 {[%emt 0:00:14]} Bb7 {[%emt 0:00:49]} 12. Bg5 {[%emt 0:03:37]} h6 {[%emt 0:04:31]} 13. Bh4 {[%emt 0:03:28]} Qd7 {[%emt 0:03:44]} 14. Re1 {[%emt 0:01:38]} Rae8 {[%emt 0:07:48]} 15. a3 {[%emt 0:13:10]} d5 {[%emt 0:11:25]} 16. exd5 {[%emt 0:18:30]} Nxd5 {[%emt 0:00:35]} 17. Ne4 {[%emt 0:00:03]} Bc8 {[%emt 0:04:59]} 18. Bg3 {[%emt 0:16:41]} Nb6 {[%emt 0:05:57]} 19. Ne5 {[%emt 0:02:03]} Nxe5 {[%emt 0:02:27]} 20. Bxe5 {[%emt 0:00:12]} f6 {[%emt 0:03:49]} 21. Nc5 {[%emt 0:01:44]} Qd8 {[%emt 0:11:05]} 22. Bg3 {[%emt 0:01:33]} Kh7 {[%emt 0:08:26]} 23. Qd3 {[%emt 0:04:54]} f5 {[%emt 0:03:12]} 24. Be5 {[%emt 0:01:42]} Nd7 {[%emt 0:01:33]} 25. Nxd7 {[%emt 0:05:40]} Qxd7 {[%emt 0:00:20]} 26. Qc3 {[%emt 0:00:17]} Rf7 {[%emt 0:01:01]} 27. Bb3 {[%emt 0:01:50]} Rfe7 {[%emt 0:00:14]} 28. f4 {[%emt 0:00:04]} Bb7 {[%emt 0:00:54]} 29. Rac1 {[%emt 0:00:17]} Bd5 {[%emt 0:03:08]} 30. Bxd5 {[%emt 0:02:04]} Qxd5 {[%emt 0:00:06]} 31. Qb4 {[%emt 0:00:32]} Bf8 {[%emt 0:02:06]} 32. Qd2 {[%emt 0:02:51]} Rd7 {[%emt 0:00:26]} 33. b4 {[%emt 0:01:01]} Bd6 {[%emt 0:00:16]} 34. Qc3 {[%emt 0:00:49]} Kg8 {[%emt 0:02:41]} 35. Qc6 {[%emt 0:02:55]} Qxc6 {[%emt 0:07:05]} 36. Rxc6 {[%emt 0:00:05]} g5 {[%emt 0:00:50]} 37. fxg5 {[%emt 0:01:35]} hxg5 {[%emt 0:00:21]} 38. Rxa6 {[%emt 0:00:05]} Kf7 {[%emt 0:03:49]} 39. Rc6 {[%emt 0:02:00]} Re6 {[%emt 0:01:43]} 40. Rc3 {[%emt 0:03:03]} f4 {[%emt 0:01:26]} 41. Kf2 {[%emt 0:01:40]} Rde7 {[%emt 0:00:07]} 42. Kf3 {[%emt 0:02:54]} Bxe5 {[%emt 0:00:27]} 43. Rxe5 {[%emt 0:00:14]} Kf6 {[%emt 0:01:16]} 44. Rcc5 {[%emt 0:01:22]} Rxe5 {[%emt 0:00:56]} 45. dxe5+ {[%emt 0:00:22]} Rxe5 {[%emt 0:00:11]} 46. Rxe5 {[%emt 0:00:15]} Kxe5 {[%emt 0:00:07]} 47. Kg4 {[%emt 0:00:02]} 1-0